fUSD/lending_fUSD_20260103
["ID","MTS","AMOUNT","RATE_DAILY","PERIOD"]
[400356081,1767424231811,-300.0,0.00027065,2]
[400356082,1767424231823,-300.0,0.00027065,2]
[400356083,1767424231835,-9231.62881911,0.00027066,2]
[400356084,1767424231850,-612.35383556,0.00027066,2]
[400356087,1767424237645,-560.30014947,0.00027065,2]
[400356088,1767424237658,-500.0,0.00027065,2]
[400356089,1767424237668,-500.0,0.00027065,2]
[400356090,1767424237679,-1423.94177926,0.00027066,2]
[400356091,1767424237762,-611.20545117,0.00027066,2]
[400356092,1767424237821,-631.18603,0.00027066,2]
[400356107,1767424239692,-1154.90933215,0.00027066,2]
[400356108,1767424239704,-1820.89468532,0.00027066,2]
[400356109,1767424239989,-3622.6658376,0.00027066,2]
[400356110,1767424240003,-898.985,0.00027066,2]
[400356111,1767424240107,-27651.09163192,0.00027066,2]
[400356124,1767424243741,-439.16784143,0.00027066,2]
[400356125,1767424243802,-516.26373609,0.00027066,2]
[400356132,1767424246212,-25090.17145959,0.00027066,2]
[400356133,1767424246224,-3251.049892,0.00027066,2]
[400356134,1767424246235,-533.9999989,0.00027066,2]
[400356135,1767424246247,-1739.65709957,0.00027066,2]
[400356136,1767424246257,-188.39139825,0.000271,2]
[400356137,1767424246267,-3895.60608565,0.000271,2]
[400356138,1767424246279,-1450.56010005,0.000271,2]
[400356139,1767424246291,-11482.86907559,0.000271,2]
[400356140,1767424246300,-14359.6185669,0.00027177,3]
[400356141,1767424246310,-225.12486509,0.00027186,2]
[400356142,1767424246319,-231.83658819,0.00027186,2]
[400356143,1767424246343,-144022.01238278,0.00027187,2]
[400356144,1767424246357,-118424.32358426,0.00027187,2]
[400356145,1767424246372,-755.53670563,0.00027187,2]
[400356146,1767424246386,-1063.53697006,0.00027187,2]
[400356147,1767424321881,347.5,0.00013699,2]
[400356149,1767424931557,482.26,0.00013114,2]
[400356150,1767424931762,482.26,0.00013804,2]
[400356151,1767424931973,482.26,0.00014494,2]
[400356152,1767424932184,482.26,0.00015184,2]
[400356153,1767424932419,482.26,0.00015874,2]
[400356154,1767424932719,482.26,0.00016565,2]
[400356155,1767424932919,482.26,0.00017255,2]
[400356156,1767424933119,482.26,0.00017945,2]
[400356159,1767425153308,150.0,0.00032877,120]
[400356160,1767425194407,253.030763,0.00017999,2]
[400356161,1767425194444,236.98532986,0.00017999,2]
[400356162,1767425194482,193.45416324,0.00017999,2]
[400356163,1767425195560,173.36668328,0.00017999,2]
[400356164,1767425221219,300.0,0.00017999,2]
[400356167,1767425272034,998.13686081,0.00014,2]
[400356169,1767425281217,300.0,0.00017999,2]
[400356173,1767425308508,400.98310267,0.00015,2]
[400356175,1767425341332,300.0,0.00017999,2]
[400356176,1767425352274,-1610.10146741,0.00018,2]
[400356178,1767425389995,280.86335607,0.0001799,2]
[400356179,1767425401196,300.0,0.00017999,2]
[400356180,1767425401228,300.0,0.00017999,2]
[400356181,1767425401406,104.87611834,0.00017999,2]
[400356182,1767425401436,1095.12388166,0.00017999,2]
[400356189,1767425431732,-71441.85839305,0.00018,2]
[400356200,1767425431838,-354.67073681,0.00018,2]
[400356201,1767425431937,-539.07428944,0.00018,2]
[400356202,1767425431952,-26709.67033306,0.00018,2]
[400356203,1767425431964,-1112.30432406,0.00018,2]
[400356204,1767425431976,-41575.23087846,0.00018,2]
[400356205,1767425432025,-940.0,0.00018,2]
[400356218,1767425438296,-1349.90711029,0.00018,2]
[400356220,1767425438398,-7190.23250641,0.00018,2]
[400356221,1767425438411,-15386.10875803,0.00018,2]
[400356222,1767425438423,-8554.93915671,0.00018,2]
[400356223,1767425438439,-11305.37118471,0.00018,2]
[400356224,1767425438451,-7217.31792378,0.00018,2]
[400356225,1767425438464,-3298.20270092,0.00018,2]
[400356226,1767425438495,-581100.39205943,0.00018,2]
[400356227,1767425438508,-2226.80422312,0.00018,2]
[400356228,1767425438520,-9050.06184128,0.00018,2]
[400356229,1767425438531,-89500.0,0.00018,2]
[400356285,1767425440187,-273.27992881,0.00018,2]
[400356286,1767425440199,-628.4687994,0.00018,2]
[400356287,1767425440283,-412.8989822,0.00018,2]
[400356296,1767425443852,-3127.9999,0.00018,2]
[400356307,1767425445820,-4095.31242003,0.00018,2]
[400356308,1767425445907,-1010.1,0.00018,2]
[400356309,1767425445919,-894.0,0.00018,2]
[400356310,1767425445956,-9.20789637,0.00018,2]
[400356311,1767425445968,-505.89576372,0.00018,2]
[400356312,1767425445980,-16906.38389332,0.00018,2]
[400356313,1767425445994,-518.799982,0.00018,2]
[400356314,1767425446007,-1907.42836594,0.00018,2]
[400356322,1767425446195,-15302.6238678,0.00018,2]
[400356325,1767425493182,1353.283,0.0001764,2]
[400356326,1767425493272,193.549,0.0001764,2]
[400356329,1767425510871,221.2554248,0.00032876,120]
[400356330,1767425518367,7358.05411834,0.00017999,2]
[400356331,1767425518393,10000.01,0.00017999,2]
[400356332,1767425518419,1132.57415556,0.00017999,2]
[400356334,1767425538210,500.0,0.00017999,2]
[400356335,1767425538509,413.10344799,0.00017999,2]
[400356336,1767425541820,500.0,0.00017999,2]
[400356337,1767425541917,501.82704703,0.00017999,2]
[400356344,1767425555999,624.29836144,0.00017999,2]
[400356379,1767425691568,163.52770626,0.000179,2]
[400356381,1767425701243,1200.0,0.00017999,2]
[400356382,1767425701390,300.0,0.00017999,2]
[400356389,1767425758519,4664.67928172,0.000179,2]
[400356390,1767425758548,10000.01,0.000179,2]
[400356391,1767425758578,765.93909231,0.000179,2]
[400356392,1767425792241,277.96267431,0.00017999,2]
[400356393,1767425816502,1017.18834289,0.000179,2]
[400356394,1767425823773,181.969832,0.000179,2]
[400356397,1767425925392,409.8311172,0.00017999,2]
[400356398,1767425957273,500.0,0.00017999,2]
[400356399,1767425968888,165.8897309,0.00017999,2]
[400356400,1767425989059,256.81553037,0.00017999,2]
[400356401,1767426001239,300.0,0.00017999,2]
[400356402,1767426002046,1200.0,0.00017999,2]
[400356403,1767426027765,271.87,0.00026839,120]
[400356404,1767426027974,271.87,0.00029279,120]
[400356405,1767426093267,1082.627,0.0001764,2]
[400356406,1767426093301,193.55031022,0.0001764,2]
[400356407,1767426095174,215.50145862,0.000179,2]
[400356408,1767426126699,50000.0,0.0003,120]
[400356410,1767426144760,3432.73491118,0.000179,2]
[400356411,1767426144790,10000.01,0.000179,2]
[400356412,1767426144824,454.82062551,0.000179,2]
[400356413,1767426145580,50000.0,0.0003,120]
[400356415,1767426236659,915.46950861,0.000179,2]
[400356416,1767426301173,1200.0,0.00017999,2]
[400356417,1767426359886,438.97,0.00016,7]
[400356419,1767426601280,1200.0,0.00017999,2]
[400356420,1767426601523,300.0,0.00017999,2]
[400356423,1767426631902,-1326.4511873,0.00018,2]
[400356425,1767426631914,-238504.67591361,0.00018,2]
[400356429,1767426631945,-5384.61428642,0.00018,2]
[400356430,1767426631957,-861.87017049,0.00018,2]
[400356431,1767426631969,-952.26692453,0.00018,2]
[400356432,1767426631980,-988.28202685,0.00018,2]
[400356433,1767426631991,-552.61072709,0.00018,2]
[400356434,1767426632003,-6555.959709,0.00018,2]
[400356435,1767426632121,-2257.89935505,0.00018,2]
[400356436,1767426632132,-4559.21452552,0.00018,2]
[400356437,1767426632144,-8406.3084529,0.00018,2]
[400356438,1767426632156,-1014.31929586,0.00018,2]
[400356439,1767426632167,-574.40002416,0.00018,2]
[400356440,1767426632179,-1368.79074071,0.00018,2]
[400356441,1767426632191,-612.54757404,0.00018,2]
[400356454,1767426637909,221.62910633,0.00017999,2]
[400356455,1767426638077,-821.0,0.00018,2]
[400356457,1767426638090,-21140.7663994,0.00018,2]
[400356459,1767426638114,-3619.89584989,0.00018,2]
[400356460,1767426638127,-999.0,0.00018,2]
[400356601,1767426640194,-5406.50649121,0.00018,2]
[400356602,1767426640326,-673483.78202687,0.00018,2]
[400356609,1767426644123,-431.09353928,0.00018,2]
[400356613,1767426646004,-12309.00009192,0.00018,2]
[400356614,1767426646045,-592.40075735,0.00018,2]
[400356615,1767426646057,-1008.24074895,0.00018,2]
[400356616,1767426646069,-3571.32045272,0.00018,2]
[400356617,1767426646081,-1155.099996,0.00018,2]
[400356618,1767426646096,-383.87296915,0.00018,2]
[400356619,1767426646123,-6296.83630006,0.00018,2]
[400356620,1767426646332,-10857.50445949,0.00018,2]
[400356621,1767426662404,300.0,0.00017999,2]
[400356622,1767426669679,-300.0,0.00018,2]
[400356623,1767426669702,-151.76307661,0.00018,2]
[400356624,1767426693216,866.101,0.0001764,2]
[400356627,1767426721246,300.0,0.00017999,2]
[400356628,1767426737145,200.0,0.00017989,2]
[400356629,1767426737737,190.37396738,0.00017989,2]
[400356636,1767426798646,500.0,0.00017999,2]
[400356637,1767426798968,500.0,0.00017999,2]
[400356638,1767426799271,500.0,0.00017999,2]
[400356639,1767426799571,500.0,0.00017999,2]
[400356640,1767426800348,500.0,0.00017999,2]
[400356641,1767426800698,500.0,0.00017999,2]
[400356642,1767426801064,319.6320493,0.00017999,2]
[400356643,1767426841269,300.0,0.00017999,2]
[400356644,1767426847286,550.0,0.00017999,2]
[400356645,1767426851588,151.0,0.00017997,2]
[400356646,1767426851620,501.53116225,0.00017999,2]
[400356647,1767426851657,158.69446303,0.00017999,2]
[400356648,1767426851688,390.6375684,0.00017999,2]
[400356649,1767426853112,1000.0,0.00017999,2]
[400356650,1767426872718,368.84800548,0.00017999,2]
[400356651,1767426878507,-43.23692339,0.00018,2]
[400356652,1767426878530,-320.29962081,0.00018,2]
[400356653,1767426884612,-110296.92900526,0.00018,2]
[400356654,1767426893584,-5294.0,0.00018,2]
[400356655,1767426898570,-10000.0,0.00018,2]
[400356656,1767426899054,-10000.0,0.00018,2]
[400356657,1767426899782,-10000.0,0.00018,2]
[400356658,1767426900014,-10000.0,0.00018,2]
[400356659,1767426900453,-10000.0,0.00018,2]
[400356660,1767426900777,-10000.0,0.00018,2]
[400356661,1767426901204,300.0,0.00017999,2]
[400356662,1767426901234,-10000.0,0.00018,2]
[400356663,1767426901267,1200.0,0.00017999,2]
[400356664,1767426901579,-10000.0,0.00018,2]
[400356665,1767426902017,-10000.0,0.00018,2]
[400356666,1767426902401,-10000.0,0.00018,2]
[400356667,1767426902760,-10000.0,0.00018,2]
[400356668,1767426903098,-10000.0,0.00018,2]
[400356669,1767426903542,-10000.0,0.00018,2]
[400356670,1767426903890,-10000.0,0.00018,2]
[400356671,1767426904291,-10000.0,0.00018,2]
[400356672,1767426905238,-10000.0,0.00018,2]
[400356673,1767426906034,-10000.0,0.00018,2]
[400356674,1767426922282,8500.01,0.000179,2]
[400356675,1767426922313,4222.14981875,0.000179,2]
[400356677,1767427023317,150.0,0.00017999,2]
[400356678,1767427030936,506.78686814,0.00017989,2]
[400356679,1767427036663,247.29816112,0.00017989,2]
[400356680,1767427037177,200.0,0.00017989,2]
[400356681,1767427040567,500.0,0.00017999,2]
[400356682,1767427040622,500.0,0.00017999,2]
[400356683,1767427040663,500.0,0.00017999,2]
[400356684,1767427040702,500.0,0.00017999,2]
[400356685,1767427040741,500.0,0.00017999,2]
[400356686,1767427040781,500.0,0.00017999,2]
[400356687,1767427040819,500.0,0.00017999,2]
[400356688,1767427040857,500.0,0.00017999,2]
[400356689,1767427040903,500.0,0.00017999,2]
[400356690,1767427040955,173.77515199,0.00017999,2]
[400356691,1767427040987,326.22484801,0.00017999,2]
[400356692,1767427041031,500.0,0.00017999,2]
[400356693,1767427041070,500.0,0.00017999,2]
[400356694,1767427041111,500.0,0.00017999,2]
[400356695,1767427041159,500.0,0.00017999,2]
[400356696,1767427041465,500.0,0.00017999,2]
[400356697,1767427041515,500.0,0.00017999,2]
[400356698,1767427041554,500.0,0.00017999,2]
[400356699,1767427041593,500.0,0.00017999,2]
[400356700,1767427041633,500.0,0.00017999,2]
[400356701,1767427041675,500.0,0.00017999,2]
[400356702,1767427041711,500.0,0.00017999,2]
[400356703,1767427041746,500.0,0.00017999,2]
[400356704,1767427041785,500.0,0.00017999,2]
[400356705,1767427041819,500.0,0.00017999,2]
[400356706,1767427041854,500.0,0.00017999,2]
[400356707,1767427041893,500.0,0.00017999,2]
[400356708,1767427041932,175.95830555,0.00017999,2]
[400356709,1767427041967,200.0,0.00017989,2]
[400356710,1767427042007,500.0,0.00017999,2]
[400356711,1767427042045,500.0,0.00017999,2]
[400356712,1767427042081,297.82684644,0.00017999,2]
[400356713,1767427042111,202.17315356,0.00017999,2]
[400356714,1767427042147,500.0,0.00017999,2]
[400356715,1767427042185,500.0,0.00017999,2]
[400356716,1767427042221,500.0,0.00017999,2]
[400356717,1767427042261,500.0,0.00017999,2]
[400356718,1767427042298,500.0,0.00017999,2]
[400356719,1767427042336,500.0,0.00017999,2]
[400356720,1767427042379,500.0,0.00017999,2]
[400356721,1767427042420,500.0,0.00017999,2]
[400356722,1767427042456,17.98211067,0.00017999,2]
[400356723,1767427042489,482.01788933,0.00017999,2]
[400356724,1767427042530,500.0,0.00017999,2]
[400356725,1767427063568,500.0,0.00017999,2]
[400356726,1767427063610,500.0,0.00017999,2]
[400356727,1767427063647,500.0,0.00017999,2]
[400356728,1767427063682,500.0,0.00017999,2]
[400356729,1767427063729,500.0,0.00017999,2]
[400356730,1767427063773,500.0,0.00017999,2]
[400356731,1767427063810,500.0,0.00017999,2]
[400356732,1767427063847,500.0,0.00017999,2]
[400356733,1767427063883,500.0,0.00017999,2]
[400356734,1767427063920,500.0,0.00017999,2]
[400356735,1767427063957,315.81895711,0.00017999,2]
[400356736,1767427063988,184.18104289,0.00017999,2]
[400356737,1767427064026,500.0,0.00017999,2]
[400356738,1767427064067,500.0,0.00017999,2]
[400356739,1767427064104,500.0,0.00017999,2]
[400356740,1767427064142,500.0,0.00017999,2]
[400356741,1767427064178,500.0,0.00017999,2]
[400356742,1767427064220,500.0,0.00017999,2]
[400356743,1767427064259,175.95830554,0.00017999,2]
[400356744,1767427064299,500.0,0.00017999,2]
[400356745,1767427064339,500.0,0.00017999,2]
[400356746,1767427064379,500.0,0.00017999,2]
[400356747,1767427064419,500.0,0.00017999,2]
[400356748,1767427064459,500.0,0.00017999,2]
[400356749,1767427064496,500.0,0.00017999,2]
[400356750,1767427064536,500.0,0.00017999,2]
[400356751,1767427064598,500.0,0.00017999,2]
[400356752,1767427077671,471.25872479,0.00017999,2]
[400356753,1767427082396,2149.97810259,0.000179,2]
[400356754,1767427084885,18.63382419,0.000179,2]
[400356755,1767427084913,179.40327812,0.000179,2]
[400356759,1767427155768,204.74527085,0.00017999,2]
[400356778,1767427201420,300.0,0.00017999,2]
[400356779,1767427201731,1200.0,0.00017999,2]
[400356780,1767427221573,500.0,0.00017999,2]
[400356781,1767427221628,500.0,0.00017999,2]
[400356782,1767427221803,500.0,0.00017999,2]
[400356783,1767427221843,500.0,0.00017999,2]
[400356784,1767427221890,500.0,0.00017999,2]
[400356785,1767427221943,559.23335556,0.00017999,2]
[400356786,1767427222250,446.54,0.0001799,2]
[400356787,1767427245259,329.88110735,0.00017999,2]
[400356789,1767427256871,279.09580809,0.00017999,2]
[400356790,1767427308713,4001.11118003,0.000179,2]
[400356791,1767427308741,7448.83265689,0.000179,2]
[400356792,1767427321282,300.0,0.00017999,2]
[400356795,1767427326170,500.0,0.00017999,2]
[400356796,1767427326244,319.20970983,0.00017999,2]
[400356798,1767427351347,206.0,0.00032877,120]
[400356799,1767427351940,151.0,0.00017999,2]
[400356800,1767427381564,300.0,0.00017999,2]
[400356801,1767427382463,550.0,0.00017999,2]
[400356804,1767427481952,350.4,0.00013699,2]
[400356805,1767427501231,80.56763328,0.00017999,2]
[400356806,1767427501257,1119.43236672,0.00017999,2]
[400356807,1767427501291,300.0,0.00017999,2]
[400356808,1767427502681,4169.74250515,0.000179,2]
[400356811,1767427514539,151.0,0.00017997,2]
[400356812,1767427514895,151.0,0.00017997,2]
[400356816,1767427548261,1405.73,9.228e-05,2]
[400356817,1767427548449,1405.73,9.714e-05,2]
[400356818,1767427548667,1297.37512813,0.000102,2]
[400356819,1767427548695,108.35487187,0.000102,2]
[400356820,1767427548864,1405.73,0.00010685,2]
[400356821,1767427549060,1405.73,0.00011171,2]
[400356822,1767427549175,7080.19512813,0.00016438,2]
[400356823,1767427549201,666.05487187,0.00016438,2]
[400356824,1767427549250,1405.73,0.00011657,2]
[400356825,1767427549448,1405.73,0.00012142,2]
[400356826,1767427549653,1405.73,0.00012628,2]
[400356827,1767427549848,1405.73,0.00013114,2]
[400356828,1767427550052,1405.73,0.000136,2]
[400356829,1767427550245,1405.73,0.00014085,2]
[400356830,1767427550459,899.57512813,0.00014571,2]
[400356831,1767427550487,506.15487187,0.00014571,2]
[400356832,1767427550657,1405.73,0.00015057,2]
[400356833,1767427550865,1405.73,0.00015542,2]
[400356834,1767427551060,1405.73,0.00016028,2]
[400356835,1767427551281,1405.73,0.00016514,2]
[400356836,1767427551477,1405.73,0.00016999,2]
[400356837,1767427551668,1405.73,0.00017485,2]
[400356838,1767427551884,1059.47512813,0.00017971,2]
[400356839,1767427551913,346.25487187,0.00017971,2]
[400356840,1767427555000,1850.85847333,0.000179,2]
[400356841,1767427561248,300.0,0.00017999,2]
[400356842,1767427565771,550.0,0.00017999,2]
[400356844,1767427637577,500.0,0.00017999,2]
[400356846,1767427669616,174.35643193,0.00017999,2]
[400356847,1767427670101,500.0,0.00017999,2]
[400356848,1767427670456,500.0,0.00017999,2]
[400356849,1767427670767,500.0,0.00017999,2]
[400356850,1767427671119,617.26181729,0.00017999,2]
[400356851,1767427678149,500.0,0.00017999,2]
[400356855,1767427695085,3661.27840558,0.000179,2]
[400356856,1767427695113,8494.58894466,0.000179,2]
[400356870,1767427743231,300.0,0.00017999,2]
[400356871,1767427750036,255.0,0.00017999,2]
[400356874,1767427801241,227.0,0.00017999,2]
[400356875,1767427801281,723.42105534,0.00017999,2]
[400356876,1767427801310,476.57894466,0.00017999,2]
[400356878,1767427816596,1632.3679,0.000179,2]
[400356883,1767427832076,-326.71333278,0.00018,2]
[400356884,1767427832122,-63606.56873345,0.00018,2]
[400356885,1767427832134,-41519.36852952,0.00018,2]
[400356886,1767427832148,-6866.99119783,0.00018,2]
[400356887,1767427832160,-9568.91771819,0.00018,2]
[400356888,1767427832172,-520.56194573,0.00018,2]
[400356889,1767427832184,-7961.47044673,0.00018,2]
[400356890,1767427832196,-10985.9411924,0.00018,2]
[400356891,1767427832268,-251.0,0.00018,2]
[400356901,1767427838265,-4091.40960963,0.00018,2]
[400356902,1767427838278,-41873.68,0.00018,2]
[400356903,1767427838398,-12382.0090856,0.00018,2]
[400357033,1767427840304,-607.11128601,0.00018,2]
[400357034,1767427840479,-0.36168096,0.00018,2]
[400357035,1767427840491,-500.0,0.00018,2]
[400357036,1767427840559,-2859.88288406,0.00018,2]
[400357037,1767427840570,-1378.47091591,0.00018,2]
[400357038,1767427840583,-13037.10289275,0.00018,2]
[400357039,1767427840686,-39999.62748228,0.00018,2]
[400357040,1767427840695,-57432.12676712,0.00018,2]
[400357041,1767427840707,-325.929999,0.00018,2]
[400357042,1767427840719,-841.0,0.00018,2]
[400357049,1767427844155,-883.59956996,0.00018,2]
[400357050,1767427844192,-330.24087922,0.00018,2]
[400357057,1767427846278,-466.77974192,0.00018,2]
[400357058,1767427846340,-3.08e-05,0.00018,2]
[400357059,1767427861188,300.0,0.00017999,2]
[400357062,1767427911272,114653.7066,0.000328,120]
[400357063,1767427921486,300.0,0.00017999,2]
[400357064,1767427925497,151.0,0.00017989,2]
[400357065,1767427926133,151.0,0.00017989,2]
[400357066,1767427926749,247.12292823,0.00017989,2]
[400357068,1767427993126,1200.0,0.00017999,2]
[400357070,1767428029595,151.0,0.00017986,2]
[400357071,1767428042805,156.63631246,0.000179,2]
[400357072,1767428046315,151.0,0.00017986,2]
[400357074,1767428068081,151.0,0.00017993,2]
[400357075,1767428068503,151.0,0.00017993,2]
[400357076,1767428084300,151.0,0.00017998,2]
[400357077,1767428084925,151.0,0.00017998,2]
[400357078,1767428101458,300.0,0.00017999,2]
[400357079,1767428101492,151.0,0.00017998,2]
[400357080,1767428101679,300.0,0.00017999,2]
[400357081,1767428101745,151.0,0.00017998,2]
[400357082,1767428101931,1200.0,0.00017999,2]
[400357084,1767428118205,151.0,0.00017998,2]
[400357085,1767428118695,151.0,0.00017998,2]
[400357086,1767428161498,170.0,0.00017999,2]
[400357102,1767428292905,1200.0,0.00017999,2]
[400357109,1767428363906,250.0,0.00017,2]
[400357113,1767428390616,166.66,0.00017466,2]
[400357114,1767428390763,166.66,0.00017833,2]
[400357115,1767428401246,300.0,0.00017999,2]
[400357116,1767428401278,1200.0,0.00017999,2]
[400357128,1767428467031,300.0,0.00017806,2]
[400357129,1767428475541,151.0,0.000328,120]
[400357149,1767428586769,300.0,0.00017754,2]
[400357154,1767428592988,130.93075931,0.00017999,2]
[400357155,1767428593016,60.06924069,0.00017999,2]
[400357170,1767428618570,151.0,0.00017875,2]
[400357171,1767428618607,151.0,0.00017875,2]
[400357179,1767428635128,151.0,0.00017875,2]
[400357180,1767428635175,151.0,0.00017875,2]
[400357181,1767428651956,151.0,0.00017867,2]
[400357182,1767428652036,151.0,0.00017867,2]
[400357186,1767428668798,151.0,0.00017867,2]
[400357187,1767428668831,190.14,0.00017867,2]
[400357191,1767428701385,666.0,0.00017999,2]
[400357192,1767428724595,-360.06694479,0.00018,2]
[400357199,1767428755742,-364.72266039,0.00018,2]
[400357201,1767428762625,-185.87709987,0.00018,2]
[400357202,1767428764229,-168.52581633,0.00018,2]
[400357204,1767428784734,-300.0,0.00018,2]
[400357205,1767428794202,575.16613032,0.00017999,2]
[400357206,1767428813062,7451.63462899,0.000162,5]
[400357207,1767428813091,2658.99550072,0.000162,5]
[400357208,1767428814281,-179.51236522,0.00018,2]
[400357209,1767428816025,-212.7008551,0.00018,2]
[400357210,1767428824419,1961.44842889,0.00015,2]
[400357215,1767428844605,-187.80115239,0.00018,2]
[400357216,1767428846944,-180.42847508,0.00018,2]
[400357217,1767428849133,-262.12448964,0.00018,2]
[400357222,1767428874635,-159.15,0.00018,2]
[400357223,1767428878500,-160.75987812,0.00018,2]
[400357224,1767428889651,-187.8922645,0.00018,2]
[400357236,1767428934629,-195.57434488,0.00018,2]
[400357237,1767428937297,-300.86586413,0.00018,2]
[400357238,1767428945119,-1593.92555111,0.00018,2]
[400357239,1767428949662,-300.0,0.00018,2]
[400357240,1767428951688,-334.67187531,0.00018,2]
[400357241,1767428959703,340.89686891,0.00017979,2]
[400357244,1767428978056,10000.0,0.00032877,120]
[400357245,1767428979658,-179.79888882,0.00018,2]
[400357247,1767428982459,-300.0,0.00018,2]
[400357251,1767428993913,1500.0,0.00017994,2]
[400357252,1767429001197,296.0,0.00017999,2]
[400357253,1767429001760,300.0,0.00017999,2]
[400357254,1767429015902,601.87233082,0.000179,2]
[400357260,1767429032268,-511.86844531,0.00018,2]
[400357263,1767429032281,-12052.98040681,0.00018,2]
[400357264,1767429032291,-166.08108907,0.00018,2]
[400357266,1767429032302,-166.08108907,0.00018,2]
[400357267,1767429032311,-166.08108907,0.00018,2]
[400357268,1767429032321,-10553.83878688,0.00018,2]
[400357269,1767429032336,-39468.44386322,0.00018,2]
[400357270,1767429032347,-2240.21394334,0.00018,2]
[400357271,1767429032618,-941.85870651,0.00018,2]
[400357272,1767429032631,-1374.32512854,0.00018,2]
[400357273,1767429032643,-1961.78531538,0.00018,2]
[400357274,1767429032654,-871.0,0.00018,2]
[400357275,1767429032666,-832.33893487,0.00018,2]
[400357276,1767429032678,-314.58304838,0.00018,2]
[400357277,1767429032690,-1196.86375132,0.00018,2]
[400357278,1767429038414,-2816.86303894,0.00018,2]
[400357279,1767429038557,-284.31076759,0.00018,2]
[400357280,1767429038569,-694.46353124,0.00018,2]
[400357281,1767429038607,-2853.02289347,0.00018,2]
[400357282,1767429038620,-12965.44379314,0.00018,2]
[400357414,1767429040481,-394.9798838,0.00018,2]
[400357425,1767429040749,-1.7e-07,0.00018,2]
[400357613,1767429044279,-514.10578506,0.00018,2]
[400357614,1767429044303,-3629.69394661,0.00018,2]
[400357615,1767429044314,-6582.06,0.00018,2]
[400357616,1767429044381,-253.88923684,0.00018,2]
[400357636,1767429046482,-2364.23973384,0.00018,2]
[400357641,1767429046843,1000.0,0.00017992,2]
[400357645,1767429061242,300.0,0.00017999,2]
[400357647,1767429121283,300.0,0.00017999,2]
[400357650,1767429135663,422.42108615,0.00017978,2]
[400357651,1767429136410,151.0,0.00017989,2]
[400357652,1767429137098,151.0,0.00017989,2]
[400357653,1767429137791,16.37578451,0.00017989,2]
[400357654,1767429137819,150.75968359,0.00017989,2]
[400357655,1767429142618,500.0,0.00017999,2]
[400357656,1767429142656,500.0,0.00017999,2]
[400357658,1767429142699,500.0,0.00017999,2]
[400357659,1767429142734,500.0,0.00017999,2]
[400357660,1767429142786,500.0,0.00017999,2]
[400357661,1767429142822,500.0,0.00017999,2]
[400357662,1767429142859,500.0,0.00017999,2]
[400357663,1767429142894,579.49984496,0.00017999,2]
[400357664,1767429142930,500.0,0.00017999,2]
[400357665,1767429142973,500.0,0.00017999,2]
[400357666,1767429143010,500.0,0.00017999,2]